fUSD/lending_fUSD_20260203
["ID","MTS","AMOUNT","RATE_DAILY","PERIOD"]
[404380304,1770087043727,-1329.7,0.00011644,2]
[404380308,1770087043739,-200.0,0.00011644,2]
[404380311,1770087043751,-500.0,0.00011644,2]
[404380314,1770087043763,-200.0,0.00011644,2]
[404380317,1770087043775,-3292.0,0.00011668,2]
[404380321,1770087043787,-488.0,0.00011678,2]
[404380325,1770087043798,-594.0,0.00011678,2]
[404380327,1770087043809,-924.0,0.00011678,2]
[404380330,1770087043821,-788.0,0.00011678,2]
[404380332,1770087043832,-500.0,0.00011678,2]
[404380333,1770087043843,-771.0,0.00011678,2]
[404380334,1770087043855,-2052.0,0.00011678,2]
[404380335,1770087043869,-500.0,0.00011678,2]
[404380337,1770087043881,-478.0,0.00011678,2]
[404380340,1770087043892,-480.0,0.00011678,2]
[404380342,1770087043904,-797.0,0.00011678,2]
[404380346,1770087043915,-534.0,0.00011678,2]
[404380348,1770087043927,-500.0,0.00011678,2]
[404380350,1770087043939,-200.0,0.00011713,2]
[404380353,1770087043950,-2000.0,0.00011718,2]
[404380355,1770087043961,-2129.8045634,0.00011718,2]
[404380356,1770087043973,-2000.0,0.00011718,2]
[404380357,1770087043985,-2000.0,0.00011718,2]
[404380358,1770087043996,-2000.0,0.00011718,2]
[404380359,1770087044008,-2000.0,0.00011718,2]
[404380360,1770087044020,-2000.0,0.00011718,2]
[404380362,1770087044032,-2000.0,0.00011718,2]
[404380364,1770087044043,-2000.0,0.00011718,2]
[404380365,1770087044055,-2000.0,0.00011718,2]
[404380366,1770087044067,-2000.0,0.00011718,2]
[404380367,1770087044079,-2020.56454931,0.00011723,2]
[404380368,1770087044090,-200.23794683,0.00011723,2]
[404380369,1770087044102,-488.0,0.00011733,2]
[404380370,1770087044114,-594.0,0.00011733,2]
[404380371,1770087044126,-924.0,0.00011733,2]
[404380372,1770087044138,-788.0,0.00011733,2]
[404380373,1770087044149,-388.45274978,0.00011733,2]
[404380374,1770087044160,-771.0,0.00011733,2]
[404380375,1770087044171,-2052.0,0.00011733,2]
[404380376,1770087044183,-500.0,0.00011733,2]
[404380377,1770087044195,-478.0,0.00011733,2]
[404380378,1770087044206,-480.0,0.00011733,2]
[404380380,1770087044218,-797.0,0.00011733,2]
[404380381,1770087044230,-500.0,0.00011733,2]
[404380382,1770087044242,-488.0,0.00011787,2]
[404380383,1770087044254,-594.0,0.00011787,2]
[404380384,1770087044265,-924.0,0.00011787,2]
[404380385,1770087044278,-788.0,0.00011787,2]
[404380386,1770087044291,-771.0,0.00011787,2]
[404380387,1770087044304,-2052.0,0.00011787,2]
[404380388,1770087044316,-319.33114122,0.00011787,2]
[404380389,1770087044326,-478.0,0.00011787,2]
[404380390,1770087044336,-480.0,0.00011787,2]
[404380391,1770087044632,-797.0,0.00011787,2]
[404380392,1770087044659,-500.0,0.00011787,2]
[404380393,1770087044673,-736.0,0.00011801,2]
[404380394,1770087044681,-200.0,0.0001183,2]
[404380395,1770087044692,-488.0,0.00011842,2]
[404380397,1770087044702,-594.0,0.00011842,2]
[404380399,1770087044711,-924.0,0.00011842,2]
[404380401,1770087044720,-788.0,0.00011842,2]
[404380402,1770087044729,-771.0,0.00011842,2]
[404380403,1770087044738,-2052.0,0.00011842,2]
[404380404,1770087044747,-478.0,0.00011842,2]
[404380405,1770087044757,-480.0,0.00011842,2]
[404380406,1770087044766,-797.0,0.00011842,2]
[404380407,1770087044776,-500.0,0.00011842,2]
[404380408,1770087044784,-488.0,0.00011897,2]
[404380409,1770087044794,-594.0,0.00011897,2]
[404380410,1770087044803,-924.0,0.00011897,2]
[404380411,1770087044812,-788.0,0.00011897,2]
[404380412,1770087044821,-771.0,0.00011897,2]
[404380413,1770087044832,-2052.0,0.00011897,2]
[404380414,1770087044846,-478.0,0.00011897,2]
[404380415,1770087044858,-480.0,0.00011897,2]
[404380416,1770087044868,-797.0,0.00011897,2]
[404380417,1770087044877,-500.0,0.00011897,2]
[404380418,1770087044888,-500.0,0.00011918,2]
[404380419,1770087044897,-1329.7,0.00011918,2]
[404380420,1770087044908,-200.0,0.00011948,2]
[404380421,1770087044918,-488.0,0.00011952,2]
[404380422,1770087044929,-594.0,0.00011952,2]
[404380423,1770087044939,-924.0,0.00011952,2]
[404380424,1770087044948,-788.0,0.00011952,2]
[404380425,1770087044959,-771.0,0.00011952,2]
[404380426,1770087044969,-2052.0,0.00011952,2]
[404380427,1770087044980,-478.0,0.00011952,2]
[404380428,1770087044990,-480.0,0.00011952,2]
[404380429,1770087044999,-797.0,0.00011952,2]
[404380430,1770087045009,-500.0,0.00011952,2]
[404380431,1770087045022,-60509.6160623,0.00011961,2]
[404380432,1770087045032,-488.0,0.00012007,2]
[404380433,1770087045043,-594.0,0.00012007,2]
[404380434,1770087045055,-924.0,0.00012007,2]
[404380435,1770087045065,-788.0,0.00012007,2]
[404380436,1770087045075,-771.0,0.00012007,2]
[404380437,1770087045086,-2052.0,0.00012007,2]
[404380438,1770087045095,-478.0,0.00012007,2]
[404380439,1770087045105,-480.0,0.00012007,2]
[404380440,1770087045114,-797.0,0.00012007,2]
[404380441,1770087045123,-500.0,0.00012007,2]
[404380442,1770087045132,-151.0,0.00012025,2]
[404380443,1770087045142,-488.0,0.00012061,2]
[404380444,1770087045153,-594.0,0.00012061,2]
[404380445,1770087045165,-924.0,0.00012061,2]
[404380446,1770087045174,-788.0,0.00012061,2]
[404380447,1770087045183,-771.0,0.00012061,2]
[404380448,1770087045193,-2052.0,0.00012061,2]
[404380449,1770087045203,-478.0,0.00012061,2]
[404380450,1770087045212,-480.0,0.00012061,2]
[404380451,1770087045221,-797.0,0.00012061,2]
[404380452,1770087045233,-240.43891395,0.00012061,2]
[404380453,1770087045243,-200.0,0.00012068,2]
[404380454,1770087045253,-488.0,0.00012116,2]
[404380455,1770087045262,-594.0,0.00012116,2]
[404380456,1770087045273,-924.0,0.00012116,2]
[404380457,1770087045282,-788.0,0.00012116,2]
[404380458,1770087045291,-771.0,0.00012116,2]
[404380459,1770087045301,-2052.0,0.00012116,2]
[404380460,1770087045311,-478.0,0.00012116,2]
[404380461,1770087045322,-480.0,0.00012116,2]
[404380462,1770087045332,-797.0,0.00012116,2]
[404380463,1770087045343,-405.15,0.00012163,2]
[404380464,1770087045354,-488.0,0.00012171,2]
[404380465,1770087045364,-594.0,0.00012171,2]
[404380466,1770087045373,-924.0,0.00012171,2]
[404380468,1770087045382,-788.0,0.00012171,2]
[404380470,1770087045391,-771.0,0.00012171,2]
[404380472,1770087045400,-2052.0,0.00012171,2]
[404380474,1770087045410,-478.0,0.00012171,2]
[404380475,1770087045419,-480.0,0.00012171,2]
[404380476,1770087045428,-797.0,0.00012171,2]
[404380478,1770087045437,-500.0,0.00012192,2]
[404380480,1770087045446,-1329.7,0.00012192,2]
[404380481,1770087045455,-200.0,0.00012192,2]
[404380482,1770087045464,-500.0,0.00012192,2]
[404380483,1770087045473,-210.8410705,0.00012192,2]
[404380484,1770087045483,-488.0,0.00012226,2]
[404380485,1770087045494,-594.0,0.00012226,2]
[404380486,1770087045503,-924.0,0.00012226,2]
[404380487,1770087045511,-788.0,0.00012226,2]
[404380488,1770087045521,-771.0,0.00012226,2]
[404380489,1770087045530,-2052.0,0.00012226,2]
[404380490,1770087045539,-478.0,0.00012226,2]
[404380491,1770087045549,-480.0,0.00012226,2]
[404380492,1770087045557,-797.0,0.00012226,2]
[404380493,1770087045567,-502.61786166,0.00012266,2]
[404380494,1770087045579,-2242.10038489,0.00012266,2]
[404380495,1770087045592,-2500.0,0.00012266,2]
[404380496,1770087045605,-2500.0,0.00012266,2]
[404380497,1770087045616,-1962.0003218,0.00012266,2]
[404380498,1770087045627,-2500.0,0.00012266,2]
[404380499,1770087045637,-2500.0,0.00012266,2]
[404380500,1770087045646,-978.22753754,0.00012266,2]
[404380501,1770087045656,-2500.0,0.00012266,2]
[404380502,1770087045666,-2500.0,0.00012266,2]
[404380503,1770087045675,-488.0,0.0001228,2]
[404380504,1770087045684,-594.0,0.0001228,2]
[404380505,1770087045694,-924.0,0.0001228,2]
[404380506,1770087045703,-788.0,0.0001228,2]
[404380507,1770087045713,-771.0,0.0001228,2]
[404380508,1770087045723,-2052.0,0.0001228,2]
[404380509,1770087045732,-478.0,0.0001228,2]
[404380510,1770087045742,-480.0,0.0001228,2]
[404380511,1770087045751,-797.0,0.0001228,2]
[404380512,1770087045760,-490.92050673,0.00012335,2]
[404380513,1770087045770,-601.49981371,0.00012335,2]
[404380514,1770087045781,-940.0,0.00012335,2]
[404380515,1770087045794,-788.5606268,0.00012335,2]
[404380516,1770087045803,-779.71000111,0.00012335,2]
[404380517,1770087045813,-2058.7721787,0.00012335,2]
[404380518,1770087045823,-483.0,0.00012335,2]
[404380519,1770087045832,-353.78276646,0.00012335,2]
[404380520,1770087045843,-799.92903427,0.00012335,2]
[404380521,1770087045852,-500.0,0.00012466,2]
[404380522,1770087045861,-1329.7,0.00012466,2]
[404380523,1770087045872,-4523.8988949,0.00012689,2]
[404380524,1770087045884,-500.0,0.0001274,2]
[404380525,1770087045893,-1329.7,0.0001274,2]
[404380526,1770087045903,-200.0,0.0001274,2]
[404380527,1770087045912,-500.0,0.0001274,2]
[404380528,1770087045922,-405.15,0.00012742,2]
[404380529,1770087045931,-5478.0,0.000128,3]
[404380530,1770087045941,-3000.0,0.00012814,2]
[404380531,1770087045951,-3000.0,0.00012814,2]
[404380532,1770087045960,-2813.11565699,0.00012814,2]
[404380533,1770087045970,-3000.0,0.00012814,2]
[404380534,1770087045980,-3117.46581372,0.00012814,2]
[404380535,1770087045989,-557.69661282,0.00012814,2]
[404380536,1770087046002,-4609.0,0.00012834,2]
[404380537,1770087046011,-271.01,0.00012877,2]
[404380538,1770087046020,-1252.0,0.0001298,2]
[404380539,1770087046030,-500.0,0.00013014,2]
[404380540,1770087046039,-1329.7,0.00013014,2]
[404380541,1770087046049,-12882.18,0.00013151,2]
[404380542,1770087046059,-151.0,0.00013181,2]
[404380543,1770087046068,-151.0,0.00013181,2]
[404380544,1770087046077,-151.0,0.00013281,2]
[404380545,1770087046087,-151.0,0.00013281,2]
[404380546,1770087046096,-3654.16645874,0.00013284,2]
[404380547,1770087046106,-508.13334215,0.00013288,2]
[404380548,1770087046115,-1329.7,0.00013288,2]
[404380550,1770087046126,-200.0,0.00013288,2]
[404380552,1770087046135,-500.0,0.00013288,2]
[404380554,1770087046145,-736.45171924,0.00013312,2]
[404380556,1770087046156,-405.15,0.00013322,2]
[404380558,1770087046166,-3500.0,0.00013362,2]
[404380560,1770087046176,-545.94198174,0.00013362,2]
[404380562,1770087046185,-3500.0,0.00013362,2]
[404380564,1770087046197,-496.05232195,0.00013383,2]
[404380566,1770087046207,-1329.7,0.00013562,2]
[404380568,1770087046216,-521.5526136,0.00013698,2]
[404380570,1770087046226,-1731.37,0.00013698,2]
[404380572,1770087046236,-1731.37,0.00013698,2]
[404380574,1770087046246,-1731.37,0.00013698,2]
[404380576,1770087046255,-1731.37,0.00013698,2]
[404380578,1770087046265,-1731.37,0.00013698,2]
[404380579,1770087046275,-1731.37,0.00013698,2]
[404380580,1770087046284,-1731.37,0.00013698,2]
[404380581,1770087046293,-1731.37,0.00013698,2]
[404380582,1770087046304,-1731.37,0.00013698,2]
[404380583,1770087046314,-1731.37,0.00013698,2]
[404380584,1770087046324,-1731.37,0.00013698,2]
[404380585,1770087046335,-1731.37,0.00013698,2]
[404380586,1770087046345,-1731.37,0.00013698,2]
[404380587,1770087046354,-1731.37,0.00013698,2]
[404380588,1770087046364,-1731.37,0.00013698,2]
[404380589,1770087046374,-1731.37,0.00013698,2]
[404380590,1770087046384,-1731.37,0.00013698,2]
[404380591,1770087046393,-1731.37,0.00013698,2]
[404380592,1770087046404,-1731.37,0.00013698,2]
[404380593,1770087046414,-1731.37,0.00013698,2]
[404380594,1770087046424,-1731.37,0.00013698,2]
[404380595,1770087046434,-1731.37,0.00013698,2]
[404380596,1770087046443,-1731.37,0.00013698,2]
[404380597,1770087046455,-1731.47366875,0.00013698,2]
[404380598,1770087046464,-515.54,0.00013698,2]
[404380599,1770087046474,-515.54,0.00013698,2]
[404380600,1770087046484,-515.54,0.00013698,2]
[404380601,1770087046493,-515.54,0.00013698,2]
[404380602,1770087046503,-515.54,0.00013698,2]
[404380603,1770087046513,-515.54,0.00013698,2]
[404380604,1770087046523,-515.54,0.00013698,2]
[404380605,1770087046532,-515.54,0.00013698,2]
[404380606,1770087046541,-515.54,0.00013698,2]
[404380607,1770087046551,-515.54,0.00013698,2]
[404380608,1770087046560,-515.54,0.00013698,2]
[404380609,1770087046570,-515.54,0.00013698,2]
[404380610,1770087046589,-515.54,0.00013698,2]
[404380611,1770087046602,-515.54,0.00013698,2]
[404380612,1770087046612,-515.54,0.00013698,2]
[404380613,1770087046621,-515.54,0.00013698,2]
[404380614,1770087046633,-515.54,0.00013698,2]
[404380615,1770087046642,-515.54,0.00013698,2]
[404380616,1770087046652,-515.54,0.00013698,2]
[404380617,1770087046662,-515.54,0.00013698,2]
[404380618,1770087046671,-515.54,0.00013698,2]
[404380619,1770087046681,-515.54,0.00013698,2]
[404380620,1770087046691,-515.54,0.00013698,2]
[404380621,1770087046700,-515.58042525,0.00013698,2]
[404380622,1770087046712,-691.95,0.00013698,2]
[404380623,1770087046723,-691.95,0.00013698,2]
[404380624,1770087046733,-691.95,0.00013698,2]
[404380625,1770087046743,-691.95,0.00013698,2]
[404380626,1770087046753,-691.95,0.00013698,2]
[404380627,1770087046763,-691.95,0.00013698,2]
[404380628,1770087046774,-691.95,0.00013698,2]
[404380629,1770087046784,-691.95,0.00013698,2]
[404380630,1770087046794,-691.95,0.00013698,2]
[404380631,1770087046804,-691.95,0.00013698,2]
[404380632,1770087046814,-691.95,0.00013698,2]
[404380633,1770087046824,-691.95,0.00013698,2]
[404380634,1770087046834,-691.95,0.00013698,2]
[404380635,1770087046844,-691.95,0.00013698,2]
[404380636,1770087046853,-691.95,0.00013698,2]
[404380637,1770087046863,-691.95,0.00013698,2]
[404380638,1770087046873,-691.95,0.00013698,2]
[404380639,1770087046883,-691.95,0.00013698,2]
[404380640,1770087046893,-691.95,0.00013698,2]
[404380641,1770087046904,-691.95,0.00013698,2]
[404380642,1770087046914,-691.95,0.00013698,2]
[404380643,1770087046924,-691.95,0.00013698,2]
[404380644,1770087046934,-691.95,0.00013698,2]
[404380645,1770087046944,-692.10667928,0.00013698,2]
[404380646,1770087046954,-500.0,0.00013698,2]
[404380647,1770087046965,-154.17727181,0.00013698,2]
[404380648,1770087046974,-707.45,0.00013698,2]
[404380649,1770087046985,-707.45,0.00013698,2]
[404380650,1770087046995,-707.45,0.00013698,2]
[404380651,1770087047005,-707.45,0.00013698,2]
[404380652,1770087047015,-707.45,0.00013698,2]
[404380653,1770087047026,-707.45,0.00013698,2]
[404380654,1770087047036,-707.45,0.00013698,2]
[404380655,1770087047046,-707.45,0.00013698,2]
[404380656,1770087047055,-707.45,0.00013698,2]
[404380657,1770087047065,-707.45,0.00013698,2]
[404380658,1770087047075,-707.45,0.00013698,2]
[404380659,1770087047084,-707.45,0.00013698,2]
[404380660,1770087047094,-707.45,0.00013698,2]
[404380661,1770087047104,-707.45,0.00013698,2]
[404380662,1770087047117,-707.45,0.00013698,2]
[404380663,1770087047138,-707.45,0.00013698,2]
[404380664,1770087047152,-707.45,0.00013698,2]
[404380665,1770087047162,-707.45,0.00013698,2]
[404380666,1770087047172,-707.45,0.00013698,2]
[404380667,1770087047182,-707.45,0.00013698,2]
[404380668,1770087047192,-707.45,0.00013698,2]
[404380669,1770087047201,-707.45,0.00013698,2]
[404380670,1770087047212,-707.45,0.00013698,2]
[404380671,1770087047222,-707.5960744,0.00013698,2]
[404380672,1770087047232,-500.0,0.00013698,2]
[404380673,1770087047241,-500.0,0.00013698,2]
[404380674,1770087047251,-500.0,0.00013698,2]
[404380675,1770087047261,-500.0,0.00013698,2]
[404380676,1770087047272,-500.0,0.00013698,2]
[404380677,1770087047282,-500.0,0.00013698,2]
[404380678,1770087047291,-500.0,0.00013698,2]
[404380679,1770087047302,-340.86649345,0.00013698,2]
[404380680,1770087047315,-500.0,0.00013698,2]
[404380681,1770087047326,-500.0,0.00013698,2]
[404380682,1770087047337,-257.68029919,0.00013698,2]
[404380683,1770087047348,-500.0,0.00013698,2]
[404380684,1770087047359,-500.0,0.00013698,2]
[404380685,1770087047369,-500.0,0.00013698,2]
[404380686,1770087047380,-500.0,0.00013698,2]
[404380687,1770087047391,-500.0,0.00013698,2]
[404380688,1770087047401,-500.0,0.00013698,2]
[404380689,1770087047411,-621.54062452,0.00013698,2]
[404380690,1770087047420,-500.0,0.00013698,2]
[404380691,1770087047430,-500.0,0.00013698,2]
[404380692,1770087047448,-500.0,0.00013698,2]
[404380693,1770087047463,-500.0,0.00013698,2]
[404380694,1770087047472,-500.0,0.00013698,2]
[404380695,1770087047483,-500.0,0.00013698,2]
[404380696,1770087047495,-500.0,0.00013698,2]
[404380697,1770087047506,-500.0,0.00013698,2]
[404380698,1770087047517,-500.0,0.00013698,2]
[404380699,1770087047528,-500.0,0.00013698,2]
[404380700,1770087047540,-500.0,0.00013698,2]
[404380701,1770087047551,-500.0,0.00013698,2]
[404380702,1770087047563,-500.0,0.00013698,2]
[404380703,1770087047573,-500.0,0.00013698,2]
[404380704,1770087047586,-500.0,0.00013698,2]
[404380705,1770087047597,-505.36940951,0.00013698,2]
[404380706,1770087047607,-500.0,0.00013698,2]
[404380707,1770087047618,-500.0,0.00013698,2]
[404380708,1770087047629,-500.0,0.00013698,2]
[404380709,1770087047638,-500.0,0.00013698,2]
[404380710,1770087047648,-500.0,0.00013698,2]
[404380711,1770087047659,-500.0,0.00013698,2]
[404380712,1770087047669,-500.0,0.00013698,2]
[404380713,1770087047679,-500.0,0.00013698,2]
[404380714,1770087047690,-500.0,0.00013698,2]
[404380715,1770087047699,-500.0,0.00013698,2]
[404380716,1770087047712,-500.0,0.00013698,2]
[404380717,1770087047722,-500.0,0.00013698,2]
[404380718,1770087047731,-500.0,0.00013698,2]
[404380719,1770087047742,-500.0,0.00013698,2]
[404380720,1770087047754,-500.0,0.00013698,2]
[404380721,1770087047764,-500.0,0.00013698,2]
[404380722,1770087047774,-411.72693123,0.00013698,2]
[404380723,1770087047784,-823.71,0.00013698,2]
[404380724,1770087047794,-823.71,0.00013698,2]
[404380725,1770087047804,-823.71,0.00013698,2]
[404380726,1770087047814,-823.71,0.00013698,2]
[404380727,1770087047824,-823.71,0.00013698,2]
[404380728,1770087047834,-823.71,0.00013698,2]
[404380729,1770087047843,-823.71,0.00013698,2]
[404380730,1770087047853,-823.71,0.00013698,2]
[404380731,1770087047864,-823.71,0.00013698,2]
[404380732,1770087047874,-823.71,0.00013698,2]
[404380733,1770087047883,-823.71,0.00013698,2]
[404380734,1770087047892,-823.71,0.00013698,2]
[404380735,1770087047902,-823.71,0.00013698,2]
[404380736,1770087047912,-823.71,0.00013698,2]
[404380747,1770087048133,-823.71,0.00013698,2]
[404380749,1770087048143,-823.71,0.00013698,2]
[404380751,1770087048153,-823.71,0.00013698,2]
[404380753,1770087048162,-823.71,0.00013698,2]
[404380755,1770087048171,-823.71,0.00013698,2]
[404380757,1770087048180,-823.71,0.00013698,2]
[404380759,1770087048190,-823.71,0.00013698,2]
[404380761,1770087048199,-823.71,0.00013698,2]
[404380763,1770087048210,-823.71,0.00013698,2]
[404380765,1770087048219,-823.84942452,0.00013698,2]
[404380766,1770087048228,-696.64,0.00013698,2]
[404380767,1770087048237,-696.64,0.00013698,2]
[404380768,1770087048246,-696.64,0.00013698,2]
[404380769,1770087048256,-696.64,0.00013698,2]
[404380770,1770087048265,-696.64,0.00013698,2]
[404380771,1770087048274,-696.64,0.00013698,2]
[404380772,1770087048283,-696.64,0.00013698,2]
[404380773,1770087048292,-696.64,0.00013698,2]
[404380774,1770087048302,-696.64,0.00013698,2]
[404380775,1770087048313,-696.64,0.00013698,2]
[404380776,1770087048322,-696.64,0.00013698,2]
[404380777,1770087048333,-696.64,0.00013698,2]
[404380778,1770087048342,-696.64,0.00013698,2]
[404380779,1770087048351,-696.64,0.00013698,2]
[404380780,1770087048360,-696.64,0.00013698,2]
[404380781,1770087048369,-696.64,0.00013698,2]
[404380782,1770087048378,-696.64,0.00013698,2]
[404380783,1770087048387,-696.64,0.00013698,2]
[404380784,1770087048397,-696.64,0.00013698,2]
[404380785,1770087048407,-696.64,0.00013698,2]
[404380786,1770087048416,-696.64,0.00013698,2]
[404380787,1770087048425,-696.64,0.00013698,2]
[404380788,1770087048434,-696.64,0.00013698,2]
[404380789,1770087048444,-696.68629093,0.00013698,2]
[404380790,1770087048454,-500.0,0.00013698,2]
[404380791,1770087048463,-500.0,0.00013698,2]
[404380792,1770087048473,-500.0,0.00013698,2]
[404380793,1770087048482,-500.0,0.00013698,2]
[404380794,1770087048491,-500.0,0.00013698,2]
[404380795,1770087048501,-500.0,0.00013698,2]
[404380796,1770087048510,-500.0,0.00013698,2]
[404380797,1770087048520,-500.0,0.00013698,2]
[404380798,1770087048530,-500.0,0.00013698,2]
[404380799,1770087048540,-500.0,0.00013698,2]
[404380800,1770087048549,-500.0,0.00013698,2]
[404380801,1770087048560,-500.0,0.00013698,2]
[404380802,1770087048572,-500.0,0.00013698,2]
[404380803,1770087048584,-500.0,0.00013698,2]
[404380804,1770087048594,-500.0,0.00013698,2]
[404380805,1770087048603,-500.0,0.00013698,2]
[404380806,1770087048612,-500.0,0.00013698,2]
[404380807,1770087048622,-245.91228722,0.00013698,2]
[404380808,1770087048632,-557.52989048,0.00013698,2]
[404380809,1770087048640,-500.92,0.00013698,2]
[404380810,1770087048650,-500.92,0.00013698,2]
[404380811,1770087048664,-500.92,0.00013698,2]
[404380812,1770087048675,-500.92,0.00013698,2]
[404380813,1770087048684,-500.92,0.00013698,2]
[404380814,1770087048693,-500.92,0.00013698,2]
[404380815,1770087048705,-500.92,0.00013698,2]
[404380816,1770087048715,-500.92,0.00013698,2]
[404380817,1770087048724,-500.92,0.00013698,2]
[404380818,1770087048734,-500.92,0.00013698,2]
[404380819,1770087048745,-500.92,0.00013698,2]
[404380820,1770087048754,-500.92,0.00013698,2]
[404380821,1770087048764,-500.92,0.00013698,2]
[404380822,1770087048774,-500.92,0.00013698,2]
[404380823,1770087048784,-500.92,0.00013698,2]
[404380824,1770087048793,-500.92,0.00013698,2]
[404380825,1770087048803,-521.47434026,0.00013698,2]
[404380826,1770087048812,-500.92,0.00013698,2]
[404380827,1770087048821,-500.92,0.00013698,2]
[404380828,1770087048832,-500.92,0.00013698,2]
[404380829,1770087048842,-500.92,0.00013698,2]
[404380830,1770087048850,-500.92,0.00013698,2]
[404380831,1770087048859,-500.92,0.00013698,2]
[404380832,1770087048868,-500.92,0.00013698,2]
[404380833,1770087048877,-501.11007115,0.00013698,2]
[404380834,1770087048887,-500.0,0.00013698,2]
[404380835,1770087048896,-500.0,0.00013698,2]
[404380836,1770087048905,-500.0,0.00013698,2]
[404380837,1770087048915,-500.0,0.00013698,2]
[404380838,1770087048924,-500.0,0.00013698,2]
[404380839,1770087048934,-500.0,0.00013698,2]
[404380840,1770087048943,-500.0,0.00013698,2]
[404380841,1770087048953,-500.0,0.00013698,2]
[404380842,1770087048963,-500.0,0.00013698,2]
[404380843,1770087048972,-500.0,0.00013698,2]
[404380844,1770087048982,-500.0,0.00013698,2]
[404380845,1770087048992,-500.0,0.00013698,2]
[404380846,1770087049002,-500.0,0.00013698,2]
[404380847,1770087049011,-500.0,0.00013698,2]
[404380848,1770087049021,-274.50988997,0.00013698,2]
[404380849,1770087049030,-1248.55,0.00013698,2]
[404380850,1770087049039,-1248.55,0.00013698,2]
[404380851,1770087049049,-1248.55,0.00013698,2]
[404380852,1770087049058,-1248.55,0.00013698,2]
[404380853,1770087049067,-1248.55,0.00013698,2]
[404380854,1770087049076,-1248.55,0.00013698,2]
[404380855,1770087049085,-1248.55,0.00013698,2]
[404380856,1770087049094,-1248.55,0.00013698,2]
[404380857,1770087049104,-1248.55,0.00013698,2]
[404380858,1770087049113,-1248.55,0.00013698,2]
[404380859,1770087049123,-1248.55,0.00013698,2]
[404380860,1770087049132,-1248.55,0.00013698,2]
[404380861,1770087049141,-1248.55,0.00013698,2]
[404380862,1770087049151,-1248.55,0.00013698,2]
[404380863,1770087049160,-1248.55,0.00013698,2]
[404380864,1770087049169,-1248.55,0.00013698,2]
[404380865,1770087049179,-1248.55,0.00013698,2]
[404380866,1770087049188,-1248.55,0.00013698,2]
[404380867,1770087049197,-1248.55,0.00013698,2]
[404380868,1770087049210,-1248.55,0.00013698,2]
[404380869,1770087049219,-1248.55,0.00013698,2]
[404380870,1770087049229,-1248.55,0.00013698,2]
[404380871,1770087049238,-1248.55,0.00013698,2]
[404380872,1770087049247,-1248.67,0.00013698,2]
[404380873,1770087049256,-552.61203619,0.00013698,2]
[404380874,1770087049266,-500.0,0.00013698,2]
[404380875,1770087049275,-500.0,0.00013698,2]
[404380876,1770087049284,-500.0,0.00013698,2]
[404380877,1770087049293,-500.0,0.00013698,2]
[404380878,1770087049303,-500.0,0.00013698,2]
[404380879,1770087049312,-500.0,0.00013698,2]
[404380880,1770087049322,-500.0,0.00013698,2]